bitfinex-derivatives/quotes_SOLF0:USTF0_20250904
["timestamp","ask_amount","ask_price","bid_price","bid_amount"]
[1757011113909,1.94832379,203.61,203.56,0.03479179]
[1757011114304,8.06,203.6,203.56,0.03479179]
[1757011114803,1.94832379,203.61,203.56,0.03479179]
[1757011115000,8.06,203.6,203.56,0.03479179]
[1757011115199,1.94832379,203.62,203.57,1.94832379]
[1757011115403,1.94832379,203.62,203.56,0.03479179]
[1757011115808,10.00832379,203.62,203.56,0.03479179]
[1757011117111,8.06,203.62,203.56,0.03479179]
[1757011117311,8.06,203.59,203.56,0.03479179]
[1757011117500,16.7,203.67,203.56,0.03479179]
[1757011117702,8.06,203.61,203.56,9.72311558]
[1757011117907,8.06,203.61,203.56,7.77479179]
[1757011118106,1.94832379,203.62,203.56,7.77479179]
[1757011118310,16.7,203.67,203.56,0.03479179]
[1757011118311,8.06,203.59,203.56,0.03479179]
[1757011119410,8.06,203.59,203.56,7.77479179]
[1757011119606,8.06,203.61,203.56,0.03479179]
[1757011119909,1.94832379,203.65,203.6,1.94832379]
[1757011120110,1.94832379,203.65,203.57,7.74]
[1757011120412,1.94832379,203.65,203.59,0.03186843]
[1757011120611,8.06,203.64,203.59,0.03186843]
[1757011120815,1.94832379,203.65,203.59,0.03186843]
[1757011121107,10.00832379,203.65,203.59,0.03186843]
[1757011121314,8.06,203.65,203.59,0.03186843]
[1757011122016,8.06,203.66,203.6,1.94832379]
[1757011123422,8.06,203.66,203.62,1.94832379]
[1757011123713,1.94832379,203.67,203.61,1.94832379]
[1757011123920,8.06,203.66,203.59,9.72019222]
[1757011124116,8.06,203.66,203.59,9.68832379]
[1757011124316,8.06,203.66,203.6,0.0364804]
[1757011125018,8.06,203.66,203.62,7.74]
[1757011125221,8.06,203.68,203.62,7.74]
[1757011126216,8.06,203.68,203.6,0.0364804]
[1757011126521,10.00832379,203.68,203.61,1.94832379]
[1757011127223,8.06,203.68,203.6,0.0364804]
[1757011127418,8.06,203.68,203.62,1.94832379]
[1757011128121,10.00832379,203.68,203.61,9.68832379]
[1757011128315,8.06,203.68,203.61,7.74]
[1757011128519,8.06,203.68,203.62,1.94832379]
[1757011129722,8.06,203.68,203.61,7.74]
[1757011129924,8.06,203.68,203.62,1.94832379]
[1757011130514,8.06,203.68,203.61,9.68832379]
[1757011132222,8.06,203.68,203.63,1.94832379]
[1757011132414,0.85483732,203.75,203.63,1.94832379]
[1757011132618,7.98,203.73,203.65,1.94832379]
[1757011132815,7.98,203.71,203.65,1.94832379]
[1757011133023,7.98,203.71,203.67,0.03527431]
[1757011133223,1.94832379,203.72,203.67,0.03527431]
[1757011133420,7.98,203.69,203.67,0.03527431]
[1757011133719,9.92832379,203.68,203.67,0.03527431]
[1757011135527,7.98,203.68,203.67,0.03527431]
[1757011135726,9.92832379,203.68,203.67,0.03527431]
[1757011136420,7.98,203.68,203.67,0.03527431]
[1757011136626,9.92832379,203.68,203.67,0.03527431]
[1757011136929,7.98,203.68,203.67,0.03527431]
[1757011137126,9.92832379,203.68,203.67,0.03527431]
[1757011137524,7.98,203.68,203.67,0.03527431]
[1757011137829,9.92832379,203.68,203.67,0.03527431]
[1757011139528,7.98,203.68,203.67,0.03527431]
[1757011139826,9.92832379,203.68,203.67,0.03527431]
[1757011140227,9.92832379,203.68,203.55,7.63]
[1757011140228,10.42832379,203.68,203.55,7.63]
[1757011140431,69.78,203.77,203.56,6.45613291]
[1757011140432,7.98,203.62,203.56,6.45613291]
[1757011140624,7.98,203.62,203.57,7.63]
[1757011140823,7.98,203.73,203.58,7.63]
[1757011141023,7.98,203.68,203.62,1.94832379]
[1757011141533,62.93462739,203.78,203.6,7.63]
[1757011141534,7.98,203.66,203.6,7.63]
[1757011142033,7.98,203.64,203.57,1.94832379]
[1757011142428,7.98,203.62,203.56,7.63]
[1757011143229,9.92832379,203.63,203.57,6.45938692]
[1757011143530,1.94832379,203.63,203.58,4.51106313]
[1757011143731,7.98,203.62,203.57,1.94832379]
[1757011144026,1.94832379,203.61,203.58,4.51136994]
[1757011144233,7.98,203.6,203.55,7.63]
[1757011144428,7.98,203.6,203.56,12.1434089]
[1757011144632,7.98,203.6,203.57,4.5134089]
[1757011144833,7.98,203.6,203.56,7.63]
[1757011145030,7.98,203.6,203.57,4.51340925]
[1757011145231,7.98,203.6,203.56,7.63]
[1757011145534,7.98,203.6,203.57,4.51543328]
[1757011145830,7.98,203.6,203.56,7.63]
[1757011146028,7.98,203.6,203.57,4.51753421]
[1757011146235,7.98,203.6,203.56,7.63]
[1757011146529,7.98,203.6,203.57,12.14779476]
[1757011146732,7.98,203.6,203.57,7.63]
[1757011147234,1.94832379,203.61,203.56,7.63]
[1757011147428,1.94832379,203.61,203.58,7.63]
[1757011147625,9.92832379,203.61,203.58,7.63]
[1757011148132,5.44496723,203.72,203.59,4.52001929]
[1757011148436,1.94832379,203.65,203.59,7.63]
[1757011149231,1.94832379,203.65,203.61,7.63]
[1757011149428,7.98,203.64,203.61,7.63]
[1757011150135,1.94832379,203.68,203.6,1.94832379]
[1757011150437,1.94832379,203.68,203.61,12.15325037]
[1757011150636,1.94832379,203.68,203.62,4.52325037]
[1757011150825,1.94832379,203.68,203.63,4.52325037]
[1757011150826,7.98,203.67,203.63,4.52325037]
[1757011151028,7.98,203.67,203.63,7.63]
[1757011152243,7.98,203.74,203.64,1.94832379]
[1757011152540,9.92832379,203.71,203.65,4.52351178]
[1757011152741,9.92832379,203.71,203.64,1.94832379]
[1757011152943,9.92832379,203.71,203.65,4.52351178]
[1757011153133,9.92832379,203.71,203.67,7.63]
[1757011153338,9.92832379,203.71,203.65,7.63]
[1757011153545,9.92832379,203.71,203.67,7.63]
[1757011153837,7.98,203.71,203.66,1.94832379]
[1757011154042,9.92832379,203.73,203.67,12.15281465]
[1757011154231,1.94832379,203.73,203.68,4.5229837]
[1757011154435,1.94832379,203.73,203.67,7.63]
[1757011154637,7.98,203.72,203.68,4.52198254]
[1757011154938,9.92832379,203.73,203.67,7.63]
[1757011155146,7.98,203.77,203.69,7.63]
[1757011155440,1.94832379,203.76,203.69,7.63]
[1757011156029,1.94832379,203.76,203.7,4.52101768]
[1757011156235,1.94832379,203.76,203.69,7.63]
[1757011156431,1.94832379,203.76,203.7,4.51967615]
[1757011156636,1.94832379,203.76,203.69,7.63]
[1757011156836,1.94832379,203.76,203.7,4.51967615]
[1757011157038,7.98,203.75,203.69,7.63]
[1757011157238,1.94832379,203.74,203.68,9.57832379]
[1757011157544,1.94832379,203.75,203.69,4.51893942]
[1757011157738,1.94832379,203.75,203.68,7.63]
[1757011157939,1.94832379,203.75,203.69,4.51893942]
[1757011158140,9.76832379,203.73,203.68,7.63]
[1757011158438,9.76832379,203.73,203.69,4.51927582]
[1757011158630,9.76832379,203.73,203.67,9.99832379]
[1757011158833,9.76832379,203.73,203.69,8.05]
[1757011159138,7.82,203.73,203.68,8.05]
[1757011159334,7.82,203.73,203.69,4.5188615]
[1757011159642,7.82,203.73,203.7,8.05]
[1757011161039,7.82,203.76,203.66,8.05]
[1757011161243,7.82,203.76,203.68,8.05]
[1757011161443,7.82,203.76,203.69,4.51844789]
[1757011161644,7.82,203.76,203.68,8.05]
[1757011161843,7.82,203.76,203.69,4.51783657]
[1757011162043,7.82,203.76,203.68,8.05]
[1757011162245,7.82,203.76,203.69,4.51856687]
[1757011162446,7.82,203.76,203.68,8.05]
[1757011162645,7.82,203.76,203.69,4.51802975]
[1757011162944,7.82,203.76,203.68,8.05]
[1757011164742,3.03749862,203.75,203.68,8.05]
[1757011164939,7.82,203.74,203.68,8.05]
[1757011166144,7.82,203.74,203.64,8.05]
[1757011166348,7.82,203.74,203.65,4.51856813]
[1757011166549,7.82,203.74,203.64,8.05]
[1757011166847,7.82,203.74,203.65,4.51864633]
[1757011167048,7.82,203.74,203.64,8.05]
[1757011167244,7.82,203.74,203.65,4.51864757]
[1757011167445,7.82,203.74,203.64,8.05]
[1757011167645,7.82,203.74,203.65,4.51874349]
[1757011167944,3.03749862,203.72,203.64,8.05]
[1757011168143,7.82,203.71,203.65,4.51876738]
[1757011168340,7.82,203.71,203.64,8.05]
[1757011169150,89.0,203.71,203.64,8.05]
[1757011172047,7.82,203.68,203.57,3.03749862]
[1757011172253,7.82,203.68,203.59,8.05]
[1757011172552,7.82,203.68,203.6,4.53460752]
[1757011172850,7.82,203.68,203.61,12.58460752]
[1757011173044,7.82,203.68,203.62,4.53460752]
[1757011173252,7.82,203.68,203.61,8.05]
[1757011173451,7.82,203.68,203.62,4.53513087]
[1757011173650,7.82,203.68,203.61,8.05]
[1757011173850,7.82,203.68,203.62,4.53513169]
[1757011174050,7.82,203.68,203.61,8.05]
[1757011174249,7.82,203.68,203.62,4.5349478]
[1757011174448,7.82,203.72,203.63,4.53494071]
[1757011174649,7.82,203.72,203.64,12.58494071]
[1757011174851,7.82,203.72,203.65,4.53494071]
[1757011175047,7.82,203.72,203.64,8.05]
[1757011175254,7.82,203.72,203.65,4.53448375]
[1757011175454,7.82,203.72,203.64,8.05]
[1757011175755,7.82,203.72,203.65,4.53472596]
[1757011175950,10.85749862,203.76,203.65,8.05]
[1757011176154,10.85749862,203.76,203.66,4.53461489]
[1757011176453,10.85749862,203.76,203.64,3.03749862]
[1757011176454,10.85749862,203.76,203.67,12.58461489]
[1757011176655,10.85749862,203.76,203.68,4.53461489]
[1757011176856,10.85749862,203.76,203.67,8.05]
[1757011177055,10.85749862,203.76,203.68,4.53358422]
[1757011177255,10.85749862,203.76,203.67,8.05]
[1757011177553,10.85749862,203.76,203.68,4.53316556]
[1757011177757,7.82,203.76,203.69,4.53316556]
[1757011177961,7.82,203.76,203.67,8.05]
[1757011178264,7.82,203.76,203.68,4.53305467]
[1757011178459,7.82,203.76,203.69,4.53305467]
[1757011178655,7.82,203.76,203.67,8.05]
[1757011178860,7.82,203.76,203.68,4.53252691]
[1757011179061,7.82,203.76,203.69,4.53252691]
[1757011179260,7.82,203.76,203.67,8.05]
[1757011179461,7.82,203.76,203.68,4.53201703]
[1757011179665,7.82,203.76,203.69,4.53201703]
[1757011179968,7.82,203.76,203.67,8.05]
[1757011180160,7.82,203.76,203.68,4.53201714]
[1757011180361,7.82,203.76,203.67,8.05]
[1757011180657,7.82,203.76,203.68,4.53156673]
[1757011180865,7.82,203.8,203.7,8.05]
[1757011181165,134.74,203.8,203.7,11.08749862]
[1757011181564,134.74,203.8,203.71,8.05]
[1757011183261,5.44496723,203.84,203.71,8.05]
[1757011183470,7.82,203.83,203.73,8.05]
[1757011184364,7.82,203.83,203.74,8.05]
[1757011186169,7.82,203.83,203.73,3.03749862]
[1757011186170,7.82,203.79,203.64,8.05]
[1757011186368,7.82,203.79,203.61,316.28]
[1757011186369,3.03749862,203.77,203.66,8.05]
[1757011186571,7.82,203.76,203.67,4.52668209]
[1757011186762,7.82,203.76,203.68,12.57668209]
[1757011187063,7.82,203.76,203.69,4.52668209]
[1757011187263,7.82,203.76,203.68,8.05]
[1757011187470,7.82,203.76,203.69,4.52671069]
[1757011187768,7.82,203.76,203.68,8.05]
[1757011187968,7.82,203.76,203.69,4.52676599]
[1757011188168,7.82,203.76,203.68,8.05]
[1757011188568,7.82,203.76,203.69,4.52724478]
[1757011188773,7.82,203.76,203.68,8.05]
[1757011190071,10.74749862,203.74,203.68,8.05]
[1757011191367,7.71,203.73,203.69,4.53112457]
[1757011191574,7.71,203.73,203.63,7.83]
[1757011191872,7.71,203.73,203.65,7.83]
[1757011192064,7.71,203.73,203.66,4.53113973]
[1757011192262,7.71,203.73,203.67,4.53113973]
[1757011192471,7.71,203.73,203.62,3.03749862]
[1757011192671,7.71,203.73,203.64,7.83]
[1757011192974,7.71,203.73,203.66,7.83]
[1757011193273,7.71,203.73,203.67,4.53279384]
[1757011193467,7.71,203.73,203.62,3.03749862]
[1757011193468,7.71,203.73,203.69,7.83]
[1757011193664,7.71,203.73,203.7,4.53279384]
[1757011193869,7.71,203.73,203.69,7.83]
[1757011194075,7.71,203.73,203.7,4.53415684]
[1757011194275,7.71,203.73,203.69,7.83]
[1757011194576,7.71,203.73,203.7,4.53571744]
[1757011194775,10.74749862,203.75,203.69,7.83]
[1757011200272,7.71,203.75,203.69,7.83]
[1757011200476,7.71,203.75,203.71,7.83]
[1757011200677,7.71,203.75,203.72,12.36860279]
[1757011200873,7.71,203.75,203.72,7.83]
[1757011201374,7.71,203.77,203.72,7.83]
[1757011201775,3.03749862,203.78,203.66,3.03749862]
[1757011201974,7.71,203.77,203.67,12.36077695]
[1757011202175,7.71,203.77,203.68,4.53077695]
[1757011202376,7.71,203.74,203.69,4.53077695]
[1757011202575,7.71,203.74,203.67,7.83]
[1757011202772,7.71,203.74,203.68,4.53095085]
[1757011202969,7.71,203.74,203.69,4.53095085]
[1757011203172,7.71,203.74,203.7,4.5308947]
[1757011203377,10.74749862,203.75,203.65,7.83]
[1757011203576,10.74749862,203.75,203.66,4.5308487]
[1757011203776,10.74749862,203.75,203.67,4.5308487]
[1757011203977,10.74749862,203.75,203.68,4.5308487]
[1757011204169,10.74749862,203.75,203.69,4.5308487]
[1757011204376,7.71,203.74,203.7,4.5308487]
[1757011204577,7.71,203.74,203.65,7.83]
[1757011204777,7.71,203.74,203.66,4.53080764]
[1757011205079,7.71,203.74,203.67,4.53080764]
[1757011205276,7.71,203.74,203.68,4.53080764]
[1757011205481,7.71,203.74,203.65,7.83]
[1757011205882,7.71,203.74,203.66,4.53115062]
[1757011206081,3.03749862,203.72,203.67,4.53115062]
[1757011206284,3.03749862,203.69,203.62,7.83]
[1757011206583,10.74749862,203.69,203.63,4.53128458]
[1757011206778,3.03749862,203.69,203.64,4.53128458]
[1757011206991,3.03749862,203.69,203.65,4.53128458]
[1757011207179,10.74749862,203.69,203.62,7.83]
[1757011207476,10.74749862,203.69,203.63,4.5312425]
[1757011207680,10.74749862,203.69,203.55,50.88]
[1757011207681,7.71,203.68,203.64,4.5312425]
[1757011207878,7.71,203.68,203.57,7.83]
[1757011208082,7.71,203.68,203.59,7.83]
[1757011208384,7.71,203.68,203.61,7.83]
[1757011208578,7.71,203.68,203.62,4.53150987]
[1757011208779,7.71,203.68,203.61,7.83]
[1757011208980,7.71,203.68,203.62,4.53064496]
[1757011209282,7.71,203.68,203.61,7.83]
[1757011209484,7.71,203.68,203.62,4.52985632]
[1757011209685,7.71,203.68,203.61,7.83]
[1757011209883,7.71,203.68,203.62,4.52985702]
[1757011210082,7.71,203.68,203.61,7.83]
[1757011210283,7.71,203.68,203.62,4.52985702]
[1757011210485,7.71,203.68,203.61,7.83]
[1757011210784,7.71,203.68,203.62,4.52915444]
[1757011210983,7.71,203.68,203.61,7.83]
[1757011211178,3.03749862,203.66,203.62,4.52915374]
[1757011211383,7.71,203.65,203.57,7.83]
[1757011211582,7.71,203.65,203.58,4.52857826]
[1757011211781,7.71,203.65,203.57,7.83]
[1757011211782,7.71,203.65,203.59,4.52857826]
[1757011211982,3.03749862,203.63,203.6,4.52857826]
[1757011212182,7.71,203.62,203.61,4.52857826]
[1757011213287,3.03749862,203.63,203.61,4.52695065]
[1757011213487,3.03749862,203.66,203.54,3.03749862]
[1757011213687,3.03749862,203.66,203.56,7.83]
[1757011213892,3.03749862,203.66,203.58,7.83]
[1757011214087,3.03749862,203.66,203.59,4.52695065]
[1757011214286,3.03749862,203.66,203.6,4.52695065]
[1757011214490,10.74749862,203.66,203.61,12.35695065]
[1757011214686,7.71,203.72,203.62,4.52625346]
[1757011214886,10.74749862,203.72,203.63,12.35625346]
[1757011215190,10.74749862,203.72,203.64,4.52625346]
[1757011215389,10.74749862,203.72,203.63,7.83]
[1757011215585,10.74749862,203.72,203.64,4.52613396]
[1757011215787,0.03674264,203.7,203.65,12.39015878]
[1757011215994,0.03674264,203.7,203.66,4.52608406]
[1757011216191,0.03674264,203.7,203.67,7.83]
[1757011216392,0.03674264,203.7,203.65,0.03407472]
[1757011216588,0.03674264,203.7,203.67,7.83]
[1757011216890,0.03674264,203.7,203.66,7.83]
[1757011217090,0.03674264,203.7,203.67,4.52602789]
[1757011217290,0.03674264,203.7,203.69,7.83]
[1757011217490,0.03674264,203.7,203.69,12.35602789]
[1757011223187,0.03674264,203.7,203.69,7.83]
[1757011227594,0.03674264,203.7,203.69,12.35807521]
[1757011227800,5.44496723,203.8,203.7,7.83]
[1757011228005,1.94421257,203.8,203.72,7.83]
[1757011228998,1.94421257,203.8,203.73,4.52757313]
[1757011229202,1.94421257,203.78,203.74,0.03722157]
[1757011229404,1.94421257,203.78,203.75,7.83]
[1757011234210,9.75421257,203.79,203.75,7.83]
[1757011234506,7.81,203.78,203.74,7.86722157]
[1757011234708,9.75421257,203.75,203.74,0.03722157]
[1757011239114,9.75421257,203.75,203.65,7.83]
[1757011239308,1.94421257,203.7,203.66,4.52367212]
[1757011239507,1.94421257,203.7,203.68,7.83]
[1757011239702,1.94421257,203.72,203.68,7.83]
[1757011239907,1.94421257,203.72,203.66,1.94421257]
[1757011240208,7.81,203.77,203.68,9.77421257]
[1757011240413,9.75421257,203.77,203.71,7.83]
[1757011241304,7.81,203.77,203.71,7.83]
[1757011241509,9.75421257,203.77,203.71,7.83]
[1757011242017,1.94421257,203.77,203.71,7.83]
[1757011244113,1.94421257,203.77,203.72,4.52228304]
[1757011244418,1.94421257,203.77,203.71,7.83]
[1757011244608,9.75421257,203.77,203.73,7.83]
[1757011245310,7.81,203.76,203.7,9.77421257]
[1757011245507,1.94421257,203.77,203.71,4.52207686]
[1757011245709,9.75421257,203.77,203.7,9.77421257]
[1757011245911,9.75421257,203.77,203.71,4.52207686]
[1757011246118,9.75421257,203.77,203.7,9.77421257]
[1757011246717,1.94421257,203.75,203.67,1.94421257]
[1757011246913,1.94421257,203.75,203.68,12.35232826]
[1757011247516,1.94421257,203.75,203.68,7.83]
[1757011248321,1.94421257,203.75,203.69,4.52159421]
[1757011248616,10.04421257,203.73,203.68,7.76]
[1757011248820,10.04421257,203.73,203.66,9.70421257]
[1757011249013,10.04421257,203.73,203.67,4.52209331]
[1757011249214,1.94421257,203.73,203.69,7.76]
[1757011249413,1.94421257,203.73,203.67,7.76]
[1757011249614,1.94421257,203.73,203.68,4.52206576]
[1757011249816,1.94421257,203.73,203.7,7.76]
[1757011250215,1.94421257,203.73,203.67,7.76]
[1757011250518,10.04421257,203.71,203.68,4.52207341]
[1757011250715,10.04421257,203.71,203.65,7.76]
[1757011250914,10.04421257,203.71,203.67,7.76]
[1757011251220,1.94421257,203.71,203.65,7.76]
[1757011251419,1.94421257,203.71,203.66,4.52252879]
[1757011251620,10.04421257,203.71,203.67,4.52252879]
[1757011251821,10.04421257,203.71,203.65,7.76]
[1757011252022,10.04421257,203.71,203.66,4.5225295]
[1757011252220,10.04421257,203.71,203.67,12.2825295]
[1757011252415,10.04421257,203.71,203.67,7.76]
[1757011252925,10.04421257,203.71,203.64,7.76]
[1757011253224,126.52,203.81,203.65,12.28284457]
[1757011253225,10.04421257,203.69,203.65,12.28284457]
[1757011253424,10.04421257,203.69,203.66,4.52284457]
[1757011253622,1.94421257,203.67,203.59,7.76]
[1757011253815,1.94421257,203.67,203.6,4.5243107]
[1757011254020,1.94421257,203.67,203.61,4.5243107]
[1757011254221,10.04421257,203.67,203.63,7.76]
[1757011254416,10.04421257,203.67,203.64,4.5243107]
[1757011254622,10.04421257,203.67,203.63,7.76]
[1757011254817,10.04421257,203.67,203.64,4.52489125]
[1757011255015,10.04421257,203.67,203.63,7.76]
[1757011255218,10.04421257,203.67,203.64,4.52489125]
[1757011255416,10.04421257,203.67,203.63,7.76]
[1757011255616,10.04421257,203.67,203.64,4.52543326]
[1757011255817,10.04421257,203.67,203.63,7.76]
[1757011256026,10.04421257,203.67,203.64,4.52543326]
[1757011256223,10.04421257,203.67,203.63,7.76]
[1757011256420,10.04421257,203.67,203.64,4.52598877]
[1757011256623,10.04421257,203.67,203.63,7.76]
[1757011256825,10.04421257,203.67,203.64,4.52598877]
[1757011257021,10.04421257,203.67,203.63,7.76]
[1757011257229,10.04421257,203.67,203.64,4.52598877]
[1757011257424,10.04421257,203.67,203.63,7.76]
[1757011257629,10.04421257,203.67,203.64,4.52698571]
[1757011257831,10.04421257,203.67,203.63,7.76]
[1757011258128,10.04421257,203.67,203.64,4.52698571]
[1757011258424,1.94421257,203.65,203.59,1.94421257]
[1757011258731,10.04421257,203.65,203.63,0.03239849]
[1757011259525,8.1,203.64,203.63,0.03239849]
[1757011259731,1.94421257,203.65,203.63,4.56122068]
[1757011259930,10.04421257,203.65,203.63,0.03239849]
[1757011260132,8.1,203.64,203.63,0.03239849]
[1757011269028,0.03655735,203.68,203.63,0.03239849]
[1757011269235,1.94421257,203.67,203.64,7.76]
[1757011270135,10.04421257,203.67,203.64,7.76]
[1757011271440,0.03655735,203.68,203.64,7.76]
[1757011271937,1.94421257,203.67,203.64,7.76]
[1757011272338,1.94421257,203.67,203.63,0.03239849]
[1757011272640,1.94421257,203.67,203.64,7.76]
[1757011272939,0.03655735,203.68,203.64,7.76]
[1757011273239,0.03655735,203.68,203.63,1.97661106]
[1757011273636,0.03655735,203.68,203.64,7.76]
[1757011273840,8.13655735,203.68,203.64,7.76]
[1757011275040,8.13655735,203.68,203.63,0.03239849]
[1757011275241,0.03655735,203.68,203.64,7.76]
[1757011275542,0.03655735,203.68,203.63,0.03239849]
[1757011275941,0.03655735,203.68,203.64,7.76]
[1757011276340,0.03655735,203.68,203.63,0.03239849]
[1757011276535,0.03655735,203.68,203.64,7.76]
[1757011277442,0.03655735,203.68,203.63,0.03239849]
[1757011277646,0.03655735,203.68,203.64,7.79]
[1757011277849,1.94421257,203.67,203.63,0.03239849]
[1757011278250,1.94421257,203.67,203.64,7.79]
[1757011278743,1.94421257,203.67,203.63,0.03239849]
[1757011278949,1.94421257,203.67,203.64,7.79]
[1757011279150,1.94421257,203.67,203.63,0.03239849]
[1757011279350,1.94421257,203.65,203.63,0.03239849]
[1757011279552,9.72421257,203.65,203.63,0.03239849]
[1757011280350,1.94421257,203.65,203.63,7.82239849]
[1757011281052,1.94421257,203.66,203.63,7.82239849]
[1757011281454,0.03655735,203.68,203.63,0.03239849]
[1757011282145,0.03655735,203.68,203.64,4.52733373]
[1757011282344,0.03655735,203.68,203.63,0.03239849]
[1757011282653,0.03655735,203.68,203.65,7.79]
[1757011283152,0.03655735,203.68,203.63,0.03239849]
[1757011283353,0.03655735,203.68,203.65,7.79]
[1757011283555,0.03655735,203.68,203.63,0.03239849]
[1757011283854,0.03655735,203.68,203.65,7.79]
[1757011284055,0.03655735,203.68,203.63,0.03239849]
[1757011284254,0.03655735,203.68,203.65,7.79]
[1757011284554,0.03655735,203.68,203.63,0.03239849]
[1757011284743,0.03655735,203.68,203.65,7.79]
[1757011284946,0.03655735,203.68,203.63,0.03239849]
[1757011285145,0.03655735,203.68,203.65,7.79]
[1757011285748,0.03655735,203.68,203.63,0.03239849]
[1757011286453,7.78,203.67,203.63,0.03239849]
[1757011286858,0.03655735,203.68,203.63,0.03239849]
[1757011287058,7.78,203.67,203.63,0.03239849]
[1757011287358,0.03655735,203.68,203.63,0.03239849]
[1757011287753,0.03655735,203.68,203.64,7.79]
[1757011287951,7.81655735,203.68,203.64,7.79]
[1757011290854,7.81655735,203.68,203.65,4.53533991]
[1757011291055,0.03655735,203.68,203.64,7.79]
[1757011291253,0.03655735,203.68,203.66,7.79]
[1757011291460,0.03655735,203.68,203.67,4.53531591]
[1757011291659,0.03655735,203.68,203.67,12.32531591]
[1757011294153,7.78,203.78,203.67,7.57433298]
[1757011294359,7.78,203.78,203.69,7.79]
[1757011294554,7.78,203.78,203.7,4.53531591]
[1757011294753,7.78,203.78,203.71,12.32531591]
[1757011294959,7.78,203.78,203.72,4.53531591]
[1757011295158,7.78,203.78,203.73,7.79]
[1757011295353,3.03901707,203.8,203.73,7.79]
[1757011295558,7.78,203.79,203.73,7.82234946]
[1757011296757,7.78,203.82,203.73,3.07136653]
[1757011296958,316.24,203.85,203.75,7.79]
[1757011297158,316.24,203.85,203.76,4.53087534]
[1757011297457,316.24,203.85,203.78,0.0344309]
[1757011299062,7.78,203.84,203.78,0.0344309]
[1757011306361,10.81901707,203.84,203.78,0.0344309]
[1757011307264,7.78,203.84,203.78,0.0344309]
[1757011308967,7.78,203.84,203.78,7.5744309]
[1757011310166,3.03901707,203.87,203.78,7.5744309]
[1757011310366,128.79901707,203.87,203.78,7.5744309]
[1757011310566,7.74,203.86,203.78,7.5744309]
[1757011316269,10.77901707,203.86,203.78,7.5744309]
[1757011317467,7.74,203.86,203.78,7.5744309]
[1757011320273,3.03901707,203.88,203.8,7.54]
[1757011320873,7.74,203.89,203.8,7.54]
[1757011321575,7.74,203.89,203.82,0.03606543]
[1757011322472,7.74,203.93,203.83,7.54]
[1757011322678,10.77901707,203.93,203.83,7.54]
[1757011322873,3.03901707,203.9,203.83,7.54]
[1757011323175,3.03901707,203.9,203.86,0.03379307]
[1757011323573,7.74,203.89,203.86,0.03379307]
[1757011325078,7.74,203.91,203.86,0.03379307]
[1757011329678,7.74,203.88,203.86,0.03379307]
[1757011330180,8.24,203.88,203.78,7.54]
[1757011330379,3.03901707,203.87,203.78,7.54]
[1757011330579,7.74,203.86,203.78,7.54]
[1757011334682,10.77901707,203.86,203.78,7.54]
[1757011337085,10.77901707,203.86,203.78,7.54]
[1757011337383,10.77901707,203.86,203.79,4.52922344]
[1757011337583,10.77901707,203.86,203.78,7.54]
[1757011337785,10.77901707,203.86,203.79,4.52951289]
[1757011337986,10.77901707,203.86,203.78,7.54]
[1757011338186,7.74,203.86,203.79,4.52951277]
[1757011338389,10.77901707,203.86,203.78,7.54]
[1757011338684,10.77901707,203.86,203.79,4.53119094]
[1757011338884,10.77901707,203.86,203.8,12.49119094]
[1757011339187,10.77901707,203.86,203.82,7.96]
[1757011339786,7.58,203.85,203.82,7.96]
[1757011340987,7.58,203.89,203.78,7.96]
[1757011341187,7.58,203.89,203.81,7.96]
[1757011341489,7.58,203.89,203.83,7.96]
[1757011341686,0.03655294,203.87,203.83,7.96]
[1757011341883,0.03655294,203.87,203.82,0.03631401]